bitfinex-derivatives/quotes_BTCF0:USTF0_20241214
["timestamp","ask_amount","ask_price","bid_price","bid_amount"]
[1734143804643,7.558e-05,101880.0,101870.0,2.36146383]
[1734143804840,7.558e-05,101880.0,101870.0,1.77396213]
[1734143805051,7.558e-05,101880.0,101870.0,2.36146383]
[1734143805545,7.558e-05,101880.0,101870.0,1.77396213]
[1734143805741,0.84744182,101910.0,101870.0,2.50865803]
[1734143805945,0.84694182,101910.0,101900.0,0.04906]
[1734143806744,0.48614182,101910.0,101900.0,0.04906]
[1734143806948,0.48664182,101910.0,101900.0,0.04906]
[1734143808046,0.48614182,101910.0,101900.0,0.04906]
[1734143808948,0.48664182,101910.0,101900.0,0.04906]
[1734143809249,0.42801258,101910.0,101900.0,0.04906]
[1734143813353,0.55107948,101910.0,101900.0,0.04906]
[1734143813745,0.91187948,101910.0,101900.0,0.04906]
[1734143814849,0.91137948,101910.0,101900.0,0.04906]
[1734143817255,0.88590704,101910.0,101900.0,0.04906]
[1734143819845,0.83736758,101910.0,101900.0,0.04906]
[1734143820152,0.88590704,101910.0,101900.0,0.04906]
[1734143820751,0.83736758,101910.0,101900.0,0.04906]
[1734143821155,0.88590704,101910.0,101900.0,0.04906]
[1734143824553,0.88590704,101910.0,101890.0,0.049064]
[1734143824554,0.049064,101900.0,101890.0,0.049064]
[1734143824754,0.48880346,101900.0,101890.0,0.049064]
[1734143824951,0.48880346,101900.0,101890.0,0.40150853]
[1734143826257,0.53734292,101900.0,101890.0,0.40150853]
[1734143827158,0.48880346,101900.0,101890.0,0.40150853]
[1734143828968,0.3912,101900.0,101890.0,0.45004799]
[1734143829259,0.52510904,101910.0,101900.0,0.04906]
[1734143829462,0.88590904,101910.0,101900.0,0.04906]
[1734143829663,0.97346376,101910.0,101900.0,0.04906]
[1734143829969,0.52510904,101910.0,101900.0,0.04906]
[1734143830160,0.88590904,101910.0,101900.0,0.04906]
[1734143830360,0.97346376,101910.0,101900.0,0.04906]
[1734143830865,0.88590904,101910.0,101900.0,0.04906]
[1734143831375,0.9249243,101910.0,101900.0,0.04906]
[1734143831667,0.5641243,101910.0,101900.0,0.04906]
[1734143831865,0.9249243,101910.0,101900.0,0.04906]
[1734143832868,0.83736958,101910.0,101900.0,0.04906]
[1734143833068,0.47656958,101910.0,101900.0,0.04906]
[1734143833471,0.83736958,101910.0,101900.0,0.04906]
[1734143833670,0.47656958,101910.0,101900.0,0.04906]
[1734143834273,0.83736958,101910.0,101900.0,0.04906]
[1734143835273,0.47472958,101910.0,101900.0,0.04906]
[1734143835972,0.11392958,101910.0,101900.0,0.04906]
[1734143837375,0.18788296,101910.0,101900.0,0.04906]
[1734143838262,0.11392958,101910.0,101900.0,0.04906]
[1734143839874,0.47472958,101910.0,101900.0,0.04906]
[1734143842582,0.54868296,101910.0,101900.0,0.04906]
[1734143843380,0.04906,101900.0,101890.0,0.72141287]
[1734143843679,0.51561338,101900.0,101890.0,0.46013705]
[1734143843974,0.51561338,101900.0,101890.0,0.40201166]
[1734143848776,0.40986,101900.0,101890.0,0.40201166]
[1734143848976,0.04906,101900.0,101890.0,0.43221166]
[1734143849176,0.04906,101900.0,101890.0,0.43208108]
[1734143849379,0.04906,101900.0,101890.0,0.079263]
[1734143850086,0.04906,101900.0,101890.0,0.43207594]
[1734143850272,0.9248843,101910.0,101900.0,0.04906]
[1734143850480,0.77392958,101910.0,101900.0,0.04906]
[1734143851172,0.46166232,101910.0,101900.0,0.04906]
[1734143851979,0.41312958,101910.0,101900.0,0.04906]
[1734143852277,0.46166232,101910.0,101900.0,0.04906]
[1734143853485,0.409853,101920.0,101910.0,0.049055]
[1734143853680,0.3608,101920.0,101910.0,0.16138774]
[1734143853884,0.57693446,101930.0,101920.0,0.04905]
[1734143854073,0.48887974,101930.0,101920.0,0.04905]
[1734143855085,0.12857974,101930.0,101920.0,0.04905]
[1734143855386,0.049547,101930.0,101920.0,0.04905]
[1734143856087,0.049047,101930.0,101920.0,0.04905]
[1734143857088,0.049547,101930.0,101920.0,0.04905]
[1734143857990,0.049047,101930.0,101920.0,0.04905]
[1734143860984,0.049047,101930.0,101920.0,0.05892554]
[1734143864384,0.40316004,101940.0,101920.0,0.00987554]
[1734143864587,0.409843,101940.0,101930.0,0.049045]
[1734143864984,0.410343,101940.0,101930.0,0.049045]
[1734143865185,0.0005,101940.0,101930.0,0.15476986]
[1734143865479,0.0005,101940.0,101930.0,0.54596986]
[1734143866091,0.09315559,101950.0,101940.0,0.049041]
[1734143868988,0.09365559,101950.0,101940.0,0.049041]
[1734143869792,0.45445559,101950.0,101940.0,0.049041]
[1734143869987,0.09365559,101950.0,101940.0,0.049041]
[1734143870184,0.049041,101940.0,101930.0,0.12079407]
[1734143870490,0.48376586,101940.0,101930.0,0.12079407]
[1734143870692,0.48376586,101940.0,101930.0,0.111244]
[1734143870888,0.48376586,101940.0,101930.0,0.049044]
[1734143875195,0.45834695,101940.0,101930.0,0.049044]
[1734143877595,0.49084695,101940.0,101930.0,0.049044]
[1734143878002,0.5393529,101940.0,101930.0,0.049044]
[1734143878198,0.49084695,101940.0,101930.0,0.049044]
[1734143885202,0.442341,101940.0,101930.0,0.049044]
[1734143885400,0.09754695,101940.0,101930.0,0.049044]
[1734143885600,0.09754695,101940.0,101930.0,0.080044]
[1734143886000,0.09754695,101940.0,101930.0,0.55333183]
[1734143888112,0.49124295,101950.0,101940.0,0.049041]
[1734143888310,0.409837,101950.0,101940.0,0.049041]
[1734143888612,0.049037,101950.0,101940.0,0.049041]
[1734143888809,0.409837,101950.0,101940.0,0.049041]
[1734143889003,0.049037,101950.0,101940.0,0.09754695]
[1734143891011,0.50239699,101960.0,101950.0,0.049036]
[1734143893309,0.49255895,101960.0,101950.0,0.049036]
[1734143894211,0.39502,101960.0,101950.0,0.09754195]
[1734143894412,0.36252,101960.0,101950.0,0.09754195]
[1734143894610,0.36252,101960.0,101950.0,0.12804195]
[1734143895221,0.53342181,101970.0,101950.0,0.54934195]
[1734143895520,0.53342181,101970.0,101960.0,0.049031]
[1734143896115,0.53392181,101970.0,101960.0,0.049031]
[1734143896509,0.17312181,101970.0,101960.0,0.049031]
[1734143896717,0.53392181,101970.0,101960.0,0.049031]
[1734143897122,0.53342181,101970.0,101960.0,0.049031]
[1734143897623,0.17262181,101970.0,101960.0,0.049031]
[1734143897814,0.53342181,101970.0,101960.0,0.049031]
[1734143898122,0.53392181,101970.0,101960.0,0.049031]
[1734143900524,0.50062181,101970.0,101960.0,0.049031]
[1734143901135,0.50012181,101970.0,101960.0,0.049031]
[1734143901334,0.44189963,101970.0,101960.0,0.049031]
[1734143901633,0.44189963,101970.0,101960.0,0.09753695]
[1734143902534,0.08109963,101970.0,101960.0,0.09753695]
[1734143903833,0.12960558,101970.0,101960.0,0.049031]
[1734143904139,0.53891153,101970.0,101940.0,0.0100295]
[1734143904334,0.45834595,101950.0,101940.0,0.04904]
[1734143904727,0.48984595,101950.0,101940.0,0.04904]
[1734143904932,0.44134,101950.0,101940.0,0.09754595]
[1734143905132,0.40984,101950.0,101940.0,0.09754595]
[1734143906231,0.45834595,101950.0,101940.0,0.04904]
[1734143907837,0.40984,101950.0,101940.0,0.09754595]
[1734143908840,0.04904,101950.0,101940.0,0.09754595]
[1734143909241,0.04904,101950.0,101940.0,0.45834595]
[1734143910939,0.55463895,101960.0,101950.0,0.049036]
[1734143911736,0.56426193,101960.0,101950.0,0.049036]
[1734143913037,0.20346193,101960.0,101950.0,0.049036]
[1734143913233,0.56426193,101960.0,101950.0,0.049036]
[1734143914643,0.20346193,101960.0,101950.0,0.049036]
[1734143914946,0.56426193,101960.0,101950.0,0.049036]
[1734143918240,0.56426193,101960.0,101930.0,0.96875294]
[1734143918241,0.04904,101950.0,101940.0,0.04904]
[1734143918445,0.45834595,101950.0,101940.0,0.04904]
[1734143918645,0.40984,101950.0,101940.0,0.04904]
[1734143918845,0.04904,101950.0,101940.0,0.09754595]
[1734143919048,0.40984,101950.0,101940.0,0.09754595]
[1734143919251,0.40984,101950.0,101940.0,0.04904]
[1734143921355,0.45834595,101950.0,101940.0,0.04904]
[1734143922052,0.09754595,101950.0,101940.0,0.04904]
[1734143922350,0.04904,101950.0,101940.0,0.09754595]
[1734143922753,0.04904,101950.0,101940.0,0.45834595]
[1734143924352,0.09754595,101950.0,101940.0,0.40984]
[1734143924548,0.12834595,101950.0,101940.0,0.40984]
[1734143924850,0.18914595,101950.0,101940.0,0.40984]
[1734143928845,0.14064,101950.0,101940.0,0.40984]
[1734143929652,0.18914595,101950.0,101940.0,0.40984]
[1734143931458,0.14064,101950.0,101940.0,0.40984]
[1734143932350,0.14064,101950.0,101940.0,0.66026619]
[1734143933559,0.14064,101950.0,101940.0,1.13003373]
[1734143934149,0.14064,101950.0,101940.0,0.66084831]
[1734143935860,0.14064,101950.0,101940.0,1.13003373]
[1734143936363,0.14064,101950.0,101940.0,0.40984]
[1734143937055,0.04904,101950.0,101940.0,0.45834595]
[1734143937254,0.04904,101950.0,101940.0,0.48914595]
[1734143937455,0.04904,101950.0,101940.0,0.52204595]
[1734143938260,0.13650169,101960.0,101950.0,0.049036]
[1734143938566,1.08220607,101970.0,101960.0,0.049031]
[1734143938567,0.5960567,101970.0,101960.0,0.049031]
[1734143938864,0.59549669,101970.0,101960.0,0.049031]
[1734143939263,0.55653395,101970.0,101960.0,0.049031]
[1734143939763,0.91733395,101970.0,101960.0,0.049031]
[1734143939964,1.00480264,101970.0,101960.0,0.049031]
[1734143940165,0.91733395,101970.0,101960.0,0.049031]
[1734143941263,1.00480264,101970.0,101960.0,0.049031]
[1734143941561,0.049031,101960.0,101950.0,0.69274331]
[1734143941869,0.09753695,101960.0,101950.0,0.080935]
[1734143942162,0.049031,101960.0,101950.0,0.080935]
[1734143942560,0.09753695,101960.0,101950.0,0.080935]
[1734143943960,0.45833695,101960.0,101950.0,0.049035]
[1734143945261,0.049036,101950.0,101940.0,0.55454495]
[1734143945660,0.40930595,101960.0,101940.0,0.55454495]
[1734143945972,0.45833795,101960.0,101950.0,0.049036]
[1734143946164,0.09753795,101960.0,101950.0,0.049036]
[1734143946365,0.049032,101960.0,101950.0,0.049036]
[1734143946561,0.09753795,101960.0,101950.0,0.049036]
[1734143947567,0.45833795,101960.0,101950.0,0.049036]
[1734143951364,0.09753795,101960.0,101950.0,0.049036]
[1734143955968,0.45833795,101960.0,101950.0,0.049036]
[1734143956866,0.85988561,101970.0,101960.0,0.049031]
[1734143957065,0.772227,101970.0,101960.0,0.19303695]
[1734143957677,0.411427,101970.0,101960.0,0.19303695]
[1734143963076,0.411427,101970.0,101960.0,0.55383695]
[1734143963377,0.411427,101970.0,101960.0,0.19303695]
[1734143963976,0.411427,101970.0,101960.0,0.144531]
[1734143967765,0.3624,101970.0,101960.0,0.144531]
[1734143968281,0.3624,101970.0,101960.0,0.505331]
[1734143968984,0.3624,101970.0,101960.0,0.55383695]
[1734143970276,0.3624,101970.0,101960.0,0.19303695]
[1734143971880,0.3624,101970.0,101960.0,0.55383695]
[1734143972481,0.3624,101970.0,101960.0,0.19303695]
[1734143973173,0.3624,101970.0,101960.0,0.55383695]
[1734143975579,0.3624,101970.0,101960.0,0.505331]
[1734143975879,0.51711017,101980.0,101960.0,0.55383695]
[1734143976087,0.46808517,101980.0,101970.0,0.049026]
[1734143977479,0.409824,101980.0,101970.0,0.09753195]
[1734143977783,0.0637,101990.0,101980.0,0.049021]
[1734143978283,0.11220595,101990.0,101980.0,0.049021]
[1734143978783,0.0637,101990.0,101980.0,0.09752695]
[1734143978976,0.0637,101990.0,101980.0,0.049021]
[1734143979175,0.11220595,101990.0,101980.0,0.049021]
[1734143980480,0.52202295,101990.0,101980.0,0.049021]
[1734143981290,0.4245,101990.0,101980.0,0.09752695]
[1734143981590,0.47300595,101990.0,101980.0,0.049021]
[1734143981791,0.11220595,101990.0,101980.0,0.049021]
[1734143982177,0.16122295,101990.0,101980.0,0.049021]
[1734143984295,0.55282295,101990.0,101980.0,0.049021]
[1734143987596,0.19202295,101990.0,101980.0,0.049021]
[1734143988293,0.143517,101990.0,101980.0,0.049021]
[1734143988491,0.19202295,101990.0,101980.0,0.049021]
[1734143991396,0.143517,101990.0,101980.0,0.049021]
[1734143998201,1.0181945,102000.0,101990.0,0.049017]
[1734143998501,1.1125945,102000.0,101990.0,0.049017]
[1734143999001,1.16110045,102000.0,101990.0,0.049017]
[1734144000501,1.1125945,102000.0,101990.0,0.049017]
[1734144003291,1.01507455,102000.0,101990.0,0.09752295]
[1734144003492,0.97592189,102000.0,101990.0,0.049017]
[1734144005395,1.0635805,102000.0,101990.0,0.049017]
[1734144008217,1.1125925,102000.0,101990.0,0.049017]
[1734144012714,0.7502325,102000.0,101990.0,0.049017]
[1734144012912,0.66257389,102000.0,101990.0,0.049017]
[1734144013407,0.7502325,102000.0,101990.0,0.049017]
[1734144014199,0.66257389,102000.0,101990.0,0.049017]
[1734144014407,0.61406794,102000.0,101990.0,0.049017]
[1734144014703,0.63007389,102000.0,101990.0,0.09752295]
[1734144014899,0.63007389,102000.0,101990.0,0.049017]
[1734144017000,0.58156794,102000.0,101990.0,0.09752295]
[1734144017598,0.50155594,102000.0,101990.0,0.09752295]
[1734144018004,0.47065594,102000.0,101990.0,0.09752295]
[1734144021819,0.51966794,102000.0,101990.0,0.09752295]
[1734144022206,0.56817389,102000.0,101990.0,0.09752295]
[1734144025818,0.56817389,102000.0,101990.0,0.049017]
[1734144026120,0.66347389,102000.0,101990.0,0.049017]
[1734144028113,0.7511325,102000.0,101990.0,0.049017]
[1734144036413,0.70262655,102000.0,101990.0,0.049017]
[1734144036613,0.70262655,102000.0,101990.0,0.5068289]
[1734144036614,0.1,102000.0,101990.0,0.5068289]
[1734144036913,0.1,102000.0,101990.0,0.60096839]
[1734144037523,0.1,102000.0,101990.0,0.49152295]
[1734144037729,0.149012,102000.0,101990.0,0.49152295]
[1734144038432,0.1,102000.0,101990.0,0.49152295]
[1734144039424,0.1,102000.0,101990.0,0.59868779]
[1734144041229,0.149012,102000.0,101990.0,0.409817]
[1734144041425,0.149012,102000.0,101990.0,0.45832295]
[1734144041933,0.55831795,102000.0,101990.0,0.05878298]
[1734144042129,0.572512,102000.0,101990.0,0.05878298]
[1734144042331,0.572512,102000.0,101990.0,0.10728893]
[1734144042727,0.509812,102000.0,101990.0,0.10728893]
[1734144045139,0.509812,102000.0,101990.0,0.05878298]
[1734144045639,0.604112,102000.0,101990.0,0.05878298]
[1734144046730,0.604112,102000.0,101990.0,0.10728893]
[1734144050752,0.61370942,102000.0,101990.0,0.10728893]
[1734144052645,0.509812,102000.0,101990.0,0.13838893]
[1734144055637,0.509812,102000.0,101990.0,0.05878298]
[1734144055843,0.65241795,102000.0,101990.0,0.05878298]
[1734144056143,0.509812,102000.0,101990.0,0.10728893]
[1734144057444,0.4608,102000.0,101990.0,0.10728893]
[1734144057652,0.4608,102000.0,101990.0,0.13978893]
[1734144060352,0.1,102000.0,101990.0,0.50058893]
[1734144061247,0.1,102000.0,101990.0,0.74348849]
[1734144061547,0.1,102000.0,101990.0,0.50058893]
[1734144063549,0.1,102000.0,101990.0,0.54909488]
[1734144063747,0.1,102000.0,101990.0,1.3515392]
[1734144064054,0.56056361,102020.0,102010.0,0.049007]
[1734144064244,0.472905,102020.0,102010.0,0.09751295]
[1734144064654,0.52141095,102020.0,102010.0,0.049007]
[1734144064944,0.60906956,102020.0,102010.0,0.049007]
[1734144065146,0.52141095,102020.0,102010.0,0.049007]
[1734144065447,0.472905,102020.0,102010.0,0.09751295]
[1734144066550,0.472905,102020.0,102010.0,0.049007]
[1734144066855,0.472905,102020.0,102010.0,0.09751295]
[1734144069355,0.473405,102020.0,102010.0,0.09751295]
[1734144070059,0.52191095,102020.0,102010.0,0.049007]
[1734144070254,0.60956956,102020.0,102010.0,0.049007]
[1734144070552,0.52141095,102020.0,102010.0,0.049007]
[1734144070947,0.60906956,102020.0,102010.0,0.049007]
[1734144071346,0.60956956,102020.0,102010.0,0.049007]
[1734144072446,0.60906956,102020.0,102010.0,0.049007]
[1734144072854,0.56056361,102020.0,102010.0,0.09751295]
[1734144073450,0.56106361,102020.0,102010.0,0.09751295]
[1734144073752,0.56106361,102020.0,102010.0,0.049007]
[1734144074449,0.56056361,102020.0,102010.0,0.049007]
[1734144075359,0.56106361,102020.0,102010.0,0.049007]
[1734144076355,0.56056361,102020.0,102010.0,0.049007]
[1734144077367,0.60956956,102020.0,102010.0,0.049007]
[1734144078352,0.60906956,102020.0,102010.0,0.049007]
[1734144078548,0.60906956,102020.0,102000.0,0.04850595]
[1734144078754,0.049007,102010.0,102000.0,0.09751495]
[1734144083353,0.049007,102010.0,102000.0,0.1460209]
[1734144083545,0.049007,102010.0,102000.0,0.1777209]
[1734144084450,0.049007,102010.0,102000.0,0.5385209]
[1734144088461,0.049007,102010.0,102000.0,0.5706209]
[1734144090562,0.049007,102010.0,102000.0,0.5711209]
[1734144091354,0.049007,102010.0,102000.0,0.5706209]
[1734144092464,0.049007,102010.0,102000.0,0.5711209]
[1734144093463,0.049007,102010.0,102000.0,0.5706209]
[1734144094357,0.049007,102010.0,102000.0,0.5711209]
[1734144096557,0.15075861,102020.0,102010.0,0.049007]
[1734144096558,0.13666161,102020.0,102010.0,0.049007]
[1734144096872,0.049003,102020.0,102010.0,0.09751295]
[1734144097077,0.049003,102020.0,102010.0,0.45831295]
[1734144097465,0.049503,102020.0,102010.0,0.45831295]
[1734144098573,0.049003,102020.0,102010.0,0.45831295]
[1734144099477,0.049503,102020.0,102010.0,0.45831295]
[1734144100470,0.049003,102020.0,102010.0,0.46824788]
[1734144101371,0.0005,102020.0,102010.0,0.46824788]
[1734144102382,0.58842141,102030.0,102020.0,0.049002]
[1734144105974,0.0891294,102030.0,102020.0,0.1460139]
[1734144106282,0.00147079,102030.0,102020.0,0.5379139]
[1734144106478,0.00147079,102030.0,102020.0,0.5703139]
[1734144107278,0.048997,102030.0,102020.0,0.049002]
[1734144107482,0.048997,102030.0,102020.0,0.09750795]
[1734144109179,0.048997,102030.0,102020.0,0.049002]
[1734144109377,0.049497,102030.0,102020.0,0.09750795]
[1734144111079,0.049497,102030.0,102020.0,0.1460139]
[1734144111279,0.049497,102030.0,102020.0,0.09750795]
[1734144112071,0.049497,102030.0,102020.0,0.1460139]
[1734144112275,0.049497,102030.0,102020.0,0.5068139]
[1734144112483,0.049497,102030.0,102020.0,0.5389139]
[1734144113089,0.049497,102030.0,102020.0,0.1781139]
[1734144113793,0.0005,102030.0,102020.0,0.5703139]
[1734144119696,0.0005,102030.0,102020.0,0.473302]
[1734144119895,0.0005,102030.0,102020.0,0.5703139]
[1734144123501,0.3622,102050.0,102040.0,0.048993]
[1734144123705,0.3622,102050.0,102040.0,0.1460049]
[1734144123900,0.58323685,102060.0,102050.0,0.048988]
[1734144124096,0.58323685,102060.0,102050.0,0.09749395]
[1734144124312,0.49557824,102060.0,102050.0,0.09749395]
[1734144124513,0.37223191,102060.0,102050.0,0.09749395]
[1734144124701,0.00147038,102060.0,102050.0,0.45829395]
[1734144125206,0.66063675,102070.0,102050.0,0.5067999]
[1734144125207,0.4561,102070.0,102050.0,0.5067999]
[1734144125407,0.36212,102080.0,102070.0,0.048978]
[1734144125609,0.36212,102080.0,102070.0,0.09748395]
[1734144127205,0.37171566,102080.0,102070.0,0.09748395]
[1734144127409,0.36212,102080.0,102070.0,0.09748395]
[1734144127806,0.51152923,102090.0,102070.0,0.09748395]
[1734144128008,0.51152923,102090.0,102080.0,0.09747895]
[1734144128009,0.15072923,102090.0,102080.0,0.09747895]
[1734144128811,0.11992923,102090.0,102080.0,0.09747895]
[1734144131408,0.0312,102090.0,102080.0,0.1459849]
[1734144131719,0.1,102100.0,102090.0,0.048969]
[1734144131904,0.1,102100.0,102090.0,0.49077495]
[1734144132915,0.1,102100.0,102090.0,0.6839266]
[1734144134311,0.1,102100.0,102090.0,0.9839266]
[1734144136118,0.1,102100.0,102090.0,0.69390067]
[1734144136304,0.1,102100.0,102090.0,0.99390067]
[1734144136511,0.1,102100.0,102090.0,0.69390067]
[1734144136713,0.1,102100.0,102090.0,0.59688877]
[1734144136905,0.1,102100.0,102090.0,0.64539472]
[1734144137210,0.1,102100.0,102090.0,0.69390067]
[1734144138719,0.00146994,102120.0,102090.0,1.19074867]
[1734144138914,0.00146994,102120.0,102110.0,0.09746495]
[1734144140310,0.00146994,102120.0,102110.0,0.45826495]
[1734144140511,0.00146994,102120.0,102110.0,0.48936495]
[1734144141022,0.00146994,102120.0,102110.0,0.68546293]
[1734144141407,0.00146994,102120.0,102110.0,0.63695698]
[1734144143619,0.00146994,102120.0,102110.0,0.71876293]
[1734144143923,0.00146994,102120.0,102110.0,0.82092434]
[1734144144918,0.43489972,102140.0,102130.0,0.048949]
[1734144145120,0.43489972,102140.0,102130.0,0.09745495]
[1734144145724,0.07409972,102140.0,102130.0,0.09745495]
[1734144145919,0.12260567,102140.0,102130.0,0.048949]
[1734144146121,0.17155067,102140.0,102130.0,0.048949]
[1734144146320,0.12304472,102140.0,102130.0,0.09745495]
[1734144147823,0.48384472,102140.0,102130.0,0.09745495]
[1734144148420,0.48384472,102140.0,102130.0,0.048949]
[1734144149019,0.048953,102130.0,102120.0,0.048953]
[1734144149325,0.080653,102130.0,102120.0,0.09745895]
[1734144149517,0.080653,102130.0,102120.0,0.048953]
[1734144149718,0.48995895,102130.0,102120.0,0.048953]
[1734144150119,0.57761756,102130.0,102120.0,0.048953]
[1734144151127,0.57761756,102130.0,102110.0,0.00984792]
[1734144151333,0.112754,102120.0,102110.0,0.09746295]
[1734144153221,0.20041261,102120.0,102110.0,0.09746295]
[1734144155218,0.31729075,102120.0,102110.0,0.09746295]
[1734144157033,0.31729075,102120.0,102110.0,0.048957]
[1734144157235,0.59043214,102120.0,102110.0,0.048957]
[1734144157737,0.73652982,102120.0,102110.0,0.048957]
[1734144158436,0.73652982,102120.0,102110.0,0.09746295]
[1734144159236,0.61965168,102120.0,102110.0,0.09746295]
[1734144159426,0.736514,102120.0,102110.0,0.09746295]
[1734144160234,0.61965168,102120.0,102110.0,0.09746295]
[1734144160431,0.25885168,102120.0,102110.0,0.09746295]
[1734144161033,0.37578529,102120.0,102110.0,0.09746295]
[1734144161236,0.25885168,102120.0,102110.0,0.09746295]
[1734144161430,0.16597391,102120.0,102110.0,0.45826295]
[1734144161635,0.25373957,102120.0,102110.0,0.48936295]
[1734144162131,0.25373957,102120.0,102110.0,0.45826295]
[1734144162737,0.16597391,102120.0,102110.0,0.45826295]
[1734144163240,0.20473399,102120.0,102110.0,0.51996295]
[1734144167134,0.08771408,102120.0,102110.0,0.51996295]
[1734144167641,0.08771408,102120.0,102110.0,0.66772055]
[1734144168738,0.25368799,102120.0,102110.0,0.63722055]
[1734144169735,0.20473399,102120.0,102110.0,0.63722055]
[1734144169947,0.08771408,102120.0,102110.0,0.63722055]
[1734144171235,0.28548499,102130.0,102120.0,0.048954]
[1734144171438,0.19777091,102130.0,102120.0,0.09745995]
[1734144172243,0.28546496,102130.0,102120.0,0.09745995]
[1734144176141,0.16844505,102130.0,102120.0,0.09745995]
[1734144179248,0.13664505,102130.0,102120.0,0.1459659]
[1734144179441,0.13664505,102130.0,102120.0,0.1780659]
[1734144180358,0.13664505,102130.0,102120.0,0.13952897]
[1734144181137,0.63611278,102150.0,102130.0,0.048949]
[1734144181138,0.00146915,102150.0,102130.0,0.048949]
[1734144181335,0.409736,102160.0,102150.0,0.04894]
[1734144184442,0.410236,102160.0,102150.0,0.04894]
[1734144185251,0.410236,102160.0,102150.0,0.48329766]
[1734144185252,0.0005,102160.0,102150.0,0.48329766]
[1734144185558,0.0005,102160.0,102150.0,0.55685532]
[1734144185847,0.0005,102160.0,102150.0,0.62205532]
[1734144186455,0.0005,102160.0,102150.0,0.72456173]
[1734144187553,0.0005,102160.0,102150.0,0.54849766]
[1734144189552,0.0005,102160.0,102150.0,0.55849436]
[1734144190344,0.0005,102160.0,102150.0,0.67212438]
[1734144190846,0.41119077,102190.0,102150.0,0.88889565]
[1734144191048,0.41119077,102190.0,102180.0,0.048925]
[1734144191751,0.04893,102170.0,102160.0,0.409734]
[1734144192541,0.04893,102170.0,102160.0,0.48329166]
[1734144193747,0.04893,102170.0,102160.0,0.409734]
[1734144195359,0.04893,102170.0,102160.0,0.48329166]
[1734144196850,0.04893,102170.0,102160.0,0.409734]
[1734144197250,0.454,102180.0,102160.0,0.43435766]
[1734144197450,0.502929,102180.0,102170.0,0.04893]
[1734144199450,0.503429,102180.0,102170.0,0.04893]
[1734144201659,0.410229,102180.0,102170.0,0.04893]
[1734144201850,0.410229,102180.0,102170.0,0.12248766]
[1734144201851,0.0005,102180.0,102170.0,0.12248766]
[1734144202164,0.0005,102180.0,102170.0,0.48328766]
[1734144204756,0.1,102200.0,102190.0,0.048921]
[1734144204961,0.1,102200.0,102190.0,0.409721]
[1734144205266,0.1,102200.0,102190.0,0.51407866]
[1734144208053,0.00970392,102220.0,102190.0,1.24843632]
[1734144208257,0.409702,102230.0,102220.0,0.048906]
[1734144208459,0.409702,102230.0,102220.0,0.12246366]
[1734144208655,0.3608,102230.0,102220.0,0.15366366]
[1734144209161,0.37206536,102240.0,102230.0,0.048901]
[1734144209360,0.37206536,102240.0,102230.0,0.18475866]
[1734144209568,0.01126536,102240.0,102230.0,0.54555866]
[1734144209961,0.47781991,102260.0,102240.0,0.048897]
[1734144210168,0.3608,102260.0,102250.0,0.12244966]
[1734144210366,0.081083,102270.0,102260.0,0.048887]
[1734144210567,0.09075257,102270.0,102260.0,0.048887]
[1734144210871,0.41935257,102270.0,102260.0,0.048887]
[1734144211072,0.05855257,102270.0,102260.0,0.048887]
[1734144211766,0.41935257,102270.0,102260.0,0.048887]
[1734144211963,0.05855257,102270.0,102260.0,0.048887]
[1734144212164,0.05855257,102270.0,102250.0,0.46765766]
[1734144212165,0.048887,102260.0,102250.0,0.048891]
[1734144212564,0.048887,102260.0,102250.0,0.409691]
[1734144212759,0.3608,102270.0,102260.0,0.048887]
[1734144213078,0.424359,102280.0,102270.0,0.048882]
[1734144213079,0.40968,102280.0,102270.0,0.048882]
[1734144213260,0.40968,102280.0,102260.0,0.12244266]
[1734144213863,0.3608,102280.0,102260.0,0.048885]
[1734144214074,0.048882,102270.0,102260.0,0.048885]
[1734144214266,0.048882,102270.0,102260.0,0.12244266]
[1734144216073,0.00978566,102280.0,102270.0,0.048882]
[1734144216278,0.409674,102290.0,102280.0,0.048878]
[1734144216573,0.00953487,102290.0,102280.0,0.3608]
[1734144216769,0.49456718,102300.0,102280.0,0.3608]
[1734144217074,0.048874,102290.0,102280.0,0.409677]
[1734144217877,0.048874,102290.0,102280.0,0.048877]
[1734144218374,0.048874,102290.0,102280.0,0.409677]
[1734144219375,0.49456718,102300.0,102280.0,0.43435766]
[1734144219376,0.52083306,102300.0,102280.0,0.43435766]
[1734144219570,0.52083306,102300.0,102290.0,0.12243066]
[1734144221379,0.52083306,102300.0,102290.0,0.048873]
[1734144222371,0.52083306,102300.0,102280.0,0.45103942]
[1734144222675,0.52083306,102300.0,102290.0,0.048873]
[1734144223182,0.048873,102290.0,102280.0,0.34588176]
[1734144223479,0.048878,102280.0,102270.0,0.048881]
[1734144223681,0.048878,102280.0,102260.0,0.52440883]
[1734144223682,0.048882,102270.0,102260.0,0.52440883]
[1734144225187,0.0646,102280.0,102250.0,0.53475239]
[1734144225188,0.474278,102280.0,102250.0,0.53475239]
[1734144225486,0.048887,102260.0,102250.0,0.58779265]
[1734144225791,0.049387,102260.0,102250.0,0.58779265]
[1734144226174,0.049387,102260.0,102250.0,0.66135031]
[1734144226384,0.049387,102260.0,102250.0,0.3608]
[1734144226587,0.048887,102260.0,102250.0,0.3608]
[1734144228089,0.048892,102250.0,102240.0,8.036e-05]
[1734144228388,0.48324966,102250.0,102240.0,8.036e-05]
[1734144228591,0.51554966,102250.0,102240.0,8.036e-05]
[1734144228891,0.54584966,102250.0,102240.0,8.036e-05]
[1734144230487,0.84584966,102250.0,102240.0,8.036e-05]
[1734144230891,0.84593565,102250.0,102240.0,3.6e-07]
[1734144231491,0.9625685,102250.0,102240.0,3.6e-07]
[1734144232686,1.03612616,102250.0,102240.0,3.6e-07]
[1734144232881,1.18191722,102250.0,102240.0,3.6e-07]
[1734144233086,0.048901,102230.0,102220.0,0.0005]
[1734144233286,0.84461866,102230.0,102220.0,0.0005]
[1734144233688,0.048906,102220.0,102210.0,0.3608]
[1734144234087,0.04901814,102220.0,102210.0,0.3608]
[1734144234289,0.04901814,102220.0,102200.0,0.442715]
[1734144234489,0.04901814,102220.0,102200.0,0.033]
[1734144234490,0.048911,102210.0,102200.0,0.033]
[1734144234691,0.048911,102210.0,102200.0,0.3938]
[1734144237295,0.40981814,102220.0,102200.0,0.3938]
[1734144237296,0.04901914,102220.0,102210.0,0.048911]